bitfinex/quotes_BTCUSD_20250418
["timestamp","ask_amount","ask_price","bid_price","bid_amount"]
[1744959122738,0.0008422,84546.0,84544.0,0.59815439]
[1744959137589,0.0008422,84546.0,84544.0,0.47104]
[1744959137789,0.0008422,84546.0,84544.0,0.34]
[1744959137790,0.16909031,84545.0,84544.0,0.34]
[1744959137989,0.17245656,84545.0,84544.0,0.34]
[1744959138249,0.17009031,84545.0,84544.0,0.34]
[1744959143193,0.12129031,84545.0,84544.0,0.34]
[1744959143553,0.0018424,84545.0,84544.0,0.4582816]
[1744959147559,0.0018424,84545.0,84544.0,0.1182816]
[1744959148711,0.0018424,84545.0,84544.0,0.2493216]
[1744959153442,0.0018424,84545.0,84544.0,0.5893216]
[1744959163487,0.0018424,84545.0,84544.0,0.03588301]
[1744959164002,0.0018424,84545.0,84544.0,0.49416461]
[1744959170891,0.0018424,84545.0,84544.0,0.131]
[1744959171198,0.0008424,84545.0,84544.0,0.2492816]
[1744959174558,0.0008424,84545.0,84544.0,0.5892816]
[1744959182773,0.0008424,84545.0,84544.0,0.4582816]
[1744959182991,0.0008424,84545.0,84544.0,0.131]
[1744959183969,0.0008424,84545.0,84544.0,0.2492816]
[1744959186231,0.0008424,84545.0,84544.0,0.5892816]
[1744959203748,0.0008424,84545.0,84544.0,0.59666286]
[1744959205933,0.0008424,84545.0,84544.0,0.51373189]
[1744959209027,0.0008424,84545.0,84544.0,0.51473189]
[1744959212234,0.0008424,84545.0,84544.0,1.09548552]
[1744959212428,0.0008424,84545.0,84544.0,1.20592065]
[1744959215542,0.01182396,84574.0,84552.0,0.55827041]
[1744959215951,0.00088789,84553.0,84552.0,0.55827041]
[1744959216255,0.00088789,84553.0,84552.0,0.56565167]
[1744959219929,0.00088789,84553.0,84552.0,0.69661167]
[1744959230724,0.00088789,84553.0,84552.0,0.70765518]
[1744959242354,0.049,84568.0,84557.0,0.45826341]
[1744959242507,4.51e-05,84561.0,84559.0,0.11826062]
[1744959242851,4.51e-05,84561.0,84560.0,0.34236476]
[1744959243006,4.51e-05,84561.0,84560.0,0.44738126]
[1744959243447,4.51e-05,84561.0,84560.0,0.45842477]
[1744959244654,4.51e-05,84561.0,84560.0,0.46729703]
[1744959247115,4.51e-05,84561.0,84560.0,0.59825703]
[1744959250399,4.51e-05,84561.0,84560.0,0.38058863]
[1744959251214,4.51e-05,84561.0,84560.0,0.15582138]
[1744959251414,4.51e-05,84561.0,84560.0,0.25087577]
[1744959256619,4.51e-05,84561.0,84560.0,0.59087577]
[1744959265353,4.51e-05,84561.0,84560.0,0.59825474]
[1744959268530,4.51e-05,84561.0,84560.0,0.51880082]
[1744959268776,4.51e-05,84561.0,84560.0,0.54655277]
[1744959270429,4.51e-05,84561.0,84560.0,0.20655277]
[1744959272405,4.51e-05,84561.0,84560.0,0.55559243]
[1744959274961,0.0492451,84561.0,84560.0,0.55559243]
[1744959281997,4.51e-05,84561.0,84560.0,0.55559243]
[1744959290886,4.51e-05,84561.0,84560.0,0.56665651]
[1744959307396,4.51e-05,84561.0,84560.0,0.55927754]
[1744959307587,4.51e-05,84561.0,84560.0,0.56665653]
[1744959309986,4.51e-05,84561.0,84560.0,0.55559245]
[1744959317737,4.51e-05,84561.0,84560.0,0.3241537]
[1744959318884,4.51e-05,84561.0,84560.0,0.33521799]
[1744959322477,4.51e-05,84561.0,84560.0,0.20409799]
[1744959322632,4.51e-05,84561.0,84560.0,0.33501799]
[1744959323751,4.51e-05,84561.0,84560.0,0.3239537]
[1744959324206,4.51e-05,84561.0,84560.0,0.1930337]
[1744959324453,4.51e-05,84561.0,84560.0,0.3239537]
[1744959331199,4.51e-05,84561.0,84560.0,0.33501891]
[1744959336882,0.01503211,84579.0,84568.0,0.45824803]
[1744959336883,0.0008426,84579.0,84568.0,0.45824803]
[1744959337170,0.0008426,84579.0,84568.0,0.58507493]
[1744959338851,0.0008426,84579.0,84568.0,0.60040183]
[1744959341099,0.0008426,84579.0,84568.0,1.01240183]
[1744959355597,0.0008426,84579.0,84568.0,1.00502284]
[1744959355760,0.0008426,84579.0,84568.0,1.01956369]
[1744959357887,0.0008426,84579.0,84578.0,0.45823405]
[1744959358213,0.0008426,84579.0,84578.0,0.58915405]
[1744959358214,0.00093328,84579.0,84578.0,0.58915405]
[1744959363951,0.00093328,84579.0,84578.0,0.76005137]
[1744959364068,0.00093328,84579.0,84578.0,0.79481624]
[1744959364274,0.00093328,84579.0,84578.0,0.76105137]
[1744959365731,0.00093328,84579.0,84578.0,0.72414281]
[1744959366541,0.0008426,84587.0,84586.0,0.45822287]
[1744959369320,0.0008426,84587.0,84586.0,0.4669743]
[1744959369738,0.0008426,84587.0,84586.0,0.00875143]
[1744959369944,0.0008426,84587.0,84586.0,0.11822287]
[1744959371574,0.0008426,84587.0,84586.0,0.12058702]
[1744959373627,0.0008426,84587.0,84586.0,0.26350209]
[1744959373849,0.0008426,84587.0,84586.0,0.26113804]
[1744959375902,0.0469,84602.0,84594.0,0.45821169]
[1744959376110,0.00089038,84595.0,84594.0,0.58909169]
[1744959377193,0.00089038,84595.0,84594.0,0.72308045]
[1744959379251,0.00089038,84595.0,84594.0,1.13508045]
[1744959380834,0.00089038,84595.0,84594.0,0.90734211]
[1744959381029,0.00089038,84595.0,84594.0,1.0255538]
[1744959385072,0.00089038,84595.0,84594.0,1.01101295]
[1744959386519,0.00089038,84595.0,84594.0,1.08187295]
[1744959386797,0.00089038,84595.0,84594.0,1.01101295]
[1744959394255,0.00089038,84595.0,84594.0,0.89156504]
[1744959400169,0.05099038,84595.0,84594.0,0.64247335]
[1744959400324,0.05099038,84595.0,84594.0,0.54288]
[1744959400532,0.05335663,84595.0,84594.0,0.54288]
[1744959400773,0.05335663,84595.0,84594.0,0.88288]
[1744959400974,0.05335663,84595.0,84594.0,0.752]
[1744959402721,0.05335663,84595.0,84594.0,0.34]
[1744959405525,0.05099038,84595.0,84594.0,0.34]
[1744959406409,0.05099038,84595.0,84594.0,0.45821169]
[1744959411328,0.04999038,84595.0,84594.0,0.45821169]
[1744959415176,0.00089038,84595.0,84594.0,0.45821169]
[1744959417207,0.00089038,84595.0,84594.0,0.11821169]
[1744959423593,0.00089038,84595.0,84594.0,0.45821169]
[1744959428507,0.00089038,84595.0,84594.0,0.5776596]
[1744959432048,0.00089038,84595.0,84594.0,0.9896596]
[1744959434130,0.02,84598.0,84597.0,0.4582075]
[1744959434360,0.02045089,84598.0,84597.0,0.4582075]
[1744959437516,0.06895089,84598.0,84597.0,0.34]
[1744959437886,0.06995089,84598.0,84595.0,0.13003131]
[1744959438341,0.06995089,84598.0,84596.0,0.34]
[1744959439489,0.06995089,84598.0,84597.0,0.1182075]
[1744959448677,0.06995089,84598.0,84597.0,0.4582075]
[1744959451101,0.06995089,84598.0,84597.0,0.34]
[1744959451305,0.06995089,84598.0,84597.0,0.4582075]
[1744959454717,0.06995089,84598.0,84597.0,0.34]
[1744959454916,0.06995089,84598.0,84597.0,0.4582075]
[1744959456063,0.06995089,84598.0,84597.0,0.34]
[1744959456968,0.06995089,84598.0,84597.0,0.4582075]
[1744959458257,0.06995089,84598.0,84597.0,0.34]
[1744959463837,0.07231714,84598.0,84597.0,0.34]
[1744959469307,0.07331714,84598.0,84597.0,0.34]
[1744959471218,0.08313775,84598.0,84595.0,0.01182102]
[1744959472992,0.08313775,84598.0,84594.0,0.01182116]
[1744959472993,0.01182075,84597.0,84594.0,0.01182116]
[1744959473247,0.00236625,84596.0,84594.0,0.01182116]
[1744959474162,0.00236625,84597.0,84594.0,0.01182116]
[1744959477618,0.014187,84597.0,84594.0,0.35182116]
[1744959480484,0.014187,84597.0,84593.0,0.1300331]
[1744959481480,0.014187,84597.0,84594.0,0.01182116]
[1744959482337,0.2506024,84597.0,84594.0,0.01182116]
[1744959482541,0.24823615,84597.0,84594.0,0.01182116]
[1744959482724,0.00236625,84596.0,84594.0,0.01182116]
[1744959484951,0.00236625,84596.0,84594.0,0.35182116]
[1744959486878,0.00236625,84596.0,84594.0,0.12388312]
[1744959487523,0.00236625,84596.0,84594.0,0.01182116]
[1744959488453,0.01182075,84597.0,84594.0,0.01182116]
[1744959492328,0.02045089,84598.0,84595.0,0.10638925]
[1744959493245,0.00236625,84597.0,84595.0,0.10638925]
[1744959494817,0.00236625,84597.0,84595.0,0.01182102]
[1744959494959,0.01182088,84596.0,84591.0,0.34]
[1744959495199,0.00236625,84595.0,84591.0,0.34]
[1744959495397,0.00236625,84595.0,84592.0,0.01182144]
[1744959495693,0.00236625,84596.0,84594.0,0.01182116]
[1744959496117,0.00236625,84597.0,84594.0,0.01182116]
[1744959496852,0.01182088,84596.0,84592.0,0.01182144]
[1744959497013,0.00236625,84595.0,84591.0,0.34]
[1744959497218,0.01418727,84595.0,84591.0,0.35182158]
[1744959497421,0.01418727,84595.0,84592.0,0.01182144]
[1744959497625,0.0495,84594.0,84592.0,0.01182144]
[1744959499686,0.0495,84594.0,84591.0,0.35182158]
[1744959501723,0.00236625,84593.0,84591.0,0.35182158]
[1744959501857,0.00236625,84593.0,84592.0,0.09457159]
[1744959502719,0.0495,84594.0,84592.0,0.09457159]
[1744959502926,0.00236625,84597.0,84594.0,0.10639014]
[1744959508088,0.00236625,84597.0,84594.0,0.01182116]
[1744959513804,0.00236625,84597.0,84594.0,0.10639047]
[1744959514003,0.00236625,84597.0,84594.0,0.01182116]
[1744959516342,0.014187,84597.0,84594.0,0.01182116]
[1744959520844,0.24823867,84596.0,84592.0,0.34]
[1744959521062,0.25061062,84595.0,84592.0,0.34]
[1744959521314,0.24824437,84595.0,84592.0,0.34]
[1744959521488,0.00236625,84594.0,84592.0,0.34]
[1744959522579,0.25061038,84595.0,84592.0,0.34]
[1744959522781,0.00236625,84594.0,84592.0,0.34]
[1744959524065,0.01182088,84596.0,84592.0,0.34]
[1744959524066,0.00236625,84595.0,84592.0,0.35182144]
[1744959524481,0.00236625,84595.0,84588.0,0.011822]
[1744959524482,0.23644015,84588.0,84583.0,0.34]
[1744959524683,0.00236625,84587.0,84584.0,0.01182256]
[1744959524900,0.01182228,84586.0,84583.0,0.34]
[1744959525090,0.00236625,84585.0,84584.0,0.47088]
[1744959528335,0.00236625,84585.0,84584.0,0.47956967]
[1744959529011,0.23881479,84585.0,84584.0,0.47956967]
[1744959533298,0.00236625,84585.0,84584.0,0.47956967]
[1744959533668,0.01182228,84586.0,84584.0,0.47956967]
[1744959533669,0.01182228,84586.0,84585.0,0.34]
[1744959538669,0.01182228,84586.0,84584.0,0.13956967]
[1744959541723,0.01182186,84589.0,84584.0,0.23415017]
[1744959541899,0.05902075,84597.0,84592.0,0.01182144]
[1744959542103,0.01182102,84595.0,84591.0,0.01182158]
[1744959542327,0.24824237,84595.0,84591.0,0.01182158]
[1744959542533,0.01182102,84595.0,84591.0,0.01182158]
[1744959542870,0.01182116,84594.0,84591.0,0.01182158]
[1744959543821,0.01182116,84594.0,84589.0,0.10639661]
[1744959544040,0.01418755,84593.0,84589.0,0.10639661]
[1744959544251,0.0118213,84593.0,84589.0,0.10639661]
[1744959546507,0.0118213,84593.0,84589.0,0.01182186]
[1744959546901,0.0118213,84593.0,84590.0,0.01182172]
[1744959547102,0.00236625,84592.0,84590.0,0.01182172]
[1744959547994,0.0118213,84593.0,84590.0,0.01182172]
[1744959551033,0.0118213,84593.0,84589.0,0.01182186]
[1744959552365,0.01182144,84592.0,84589.0,0.01182186]
[1744959556524,0.01182158,84591.0,84587.0,0.35182214]
[1744959557338,0.24825589,84591.0,84587.0,0.35182214]
[1744959557545,0.24825589,84591.0,84588.0,0.13088]
[1744959558708,0.01182158,84591.0,84588.0,0.22545589]
[1744959558841,0.01182158,84591.0,84588.0,0.13088]
[1744959562111,0.24825571,84591.0,84588.0,0.13088]
[1744959562514,0.01182172,84590.0,84589.0,0.13088]
[1744959562649,0.24825848,84590.0,84589.0,0.13088]
[1744959568572,0.01182158,84591.0,84589.0,0.13088]
[1744959568928,0.01418783,84591.0,84589.0,0.13088]
[1744959570075,0.01182172,84590.0,84589.0,0.13088]
[1744959574059,0.01418783,84591.0,84589.0,0.13088]
[1744959574277,0.00236625,84591.0,84589.0,0.13088]
[1744959574681,0.01182144,84592.0,84589.0,0.13088]
[1744959574879,0.0118213,84593.0,84589.0,0.14270186]
[1744959576179,0.23641049,84599.0,84589.0,0.14270186]
[1744959576382,0.00236625,84597.0,84593.0,0.0118213]
[1744959576583,0.014187,84597.0,84594.0,0.01182116]
[1744959576731,0.014187,84597.0,84593.0,0.0118213]
[1744959577709,0.014187,84597.0,84594.0,0.10639051]
[1744959578169,0.00236625,84597.0,84596.0,0.09456711]
[1744959578396,0.02045089,84598.0,84596.0,0.09456711]
[1744959579695,0.02045089,84598.0,84595.0,0.01182102]
[1744959579903,0.00236625,84597.0,84595.0,0.01182102]
[1744959581282,0.00236625,84597.0,84592.0,0.09457159]
[1744959581445,0.00236625,84597.0,84595.0,0.01182102]
[1744959583030,0.02045089,84598.0,84595.0,0.01182102]
[1744959584563,0.0322715,84598.0,84593.0,0.34]
[1744959584795,0.0322715,84598.0,84592.0,0.09457159]
[1744959584997,0.03463775,84598.0,84592.0,0.09457159]
[1744959585570,0.05752088,84596.0,84593.0,0.13088]
[1744959585776,0.05752088,84596.0,84592.0,0.01182144]
[1744959586116,0.05752088,84596.0,84593.0,0.34]
[1744959586737,0.05752088,84596.0,84593.0,0.3518213]
[1744959592519,0.23642059,84595.0,84593.0,0.34]
[1744959593661,0.23878684,84595.0,84593.0,0.34]
[1744959596410,0.00236625,84595.0,84593.0,0.34]
[1744959598967,0.00236625,84595.0,84593.0,0.43457041]
[1744959599382,0.00236625,84596.0,84593.0,0.3518213]
[1744959599572,0.00236625,84596.0,84593.0,0.0118213]
[1744959603254,0.25509522,84598.0,84593.0,0.0118213]
[1744959603784,0.01182075,84597.0,84593.0,0.0118213]
[1744959605130,0.00686076,84598.0,84595.0,0.09456823]
[1744959605335,0.00686076,84598.0,84594.0,0.01182116]
[1744959605747,0.00686076,84598.0,84595.0,0.01182102]
[1744959605981,0.00686076,84598.0,84595.0,0.10638918]
[1744959607481,0.00686076,84598.0,84596.0,0.00737689]
[1744959607696,0.00686076,84598.0,84597.0,0.094566]
[1744959607871,0.00686076,84598.0,84597.0,0.10194289]
[1744959609089,0.00686076,84598.0,84595.0,0.04206518]
[1744959609965,0.00686076,84598.0,84597.0,0.094566]
[1744959610169,0.00686076,84598.0,84595.0,0.0538862]
[1744959610737,0.01182075,84597.0,84588.0,0.09457501]
[1744959610965,0.29613867,84596.0,84595.0,0.13084]
[1744959611121,0.01182102,84595.0,84590.0,0.01182172]
[1744959611327,0.01182116,84594.0,84591.0,0.34]
[1744959611505,0.2482452,84594.0,84591.0,0.34]
[1744959611715,0.01182116,84594.0,84591.0,0.34]
[1744959613617,0.01868137,84598.0,84592.0,0.01182144]
[1744959614214,0.25509624,84598.0,84592.0,0.01182144]
[1744959614659,0.01182088,84596.0,84592.0,0.01182144]
[1744959614782,0.25509624,84598.0,84594.0,0.01182116]
[1744959615605,0.01868137,84598.0,84595.0,0.01182102]
[1744959616208,0.00686076,84598.0,84595.0,0.10638884]
[1744959616413,0.00686076,84598.0,84597.0,0.094566]
[1744959623345,0.00686076,84598.0,84597.0,0.095566]
[1744959639490,0.00686076,84598.0,84597.0,0.001]
[1744959639708,0.00686076,84598.0,84597.0,0.095566]
[1744959639910,0.00686076,84598.0,84597.0,0.001]
[1744959640141,0.00686076,84598.0,84597.0,0.47216]
[1744959640490,0.00686076,84598.0,84597.0,0.566726]
[1744959643369,0.00686076,84598.0,84597.0,0.47216]
[1744959643576,0.24327296,84598.0,84597.0,0.47216]
[1744959644576,0.00686076,84598.0,84597.0,0.47216]
[1744959651206,0.00686076,84598.0,84597.0,0.47116]
[1744959652024,0.00686076,84598.0,84596.0,0.22572607]
[1744959653946,0.00686076,84598.0,84597.0,0.34]
[1744959658652,0.00686076,84598.0,84596.0,0.13116]
[1744959663249,0.00686076,84598.0,84596.0,0.34]
[1744959668984,0.2941266,84601.0,84596.0,0.35182088]
[1744959670202,0.23640959,84599.0,84596.0,0.34]
[1744959670401,0.236415,84597.0,84596.0,0.34]
[1744959670721,0.286215,84597.0,84596.0,0.34]
[1744959672515,0.24823006,84599.0,84596.0,0.34]
[1744959676905,0.01182047,84599.0,84596.0,0.35182088]
[1744959679965,0.01182047,84599.0,84596.0,0.13500348]
[1744959680192,0.01182047,84599.0,84596.0,0.01182088]
[1744959682189,0.01182047,84599.0,84596.0,0.35182088]
[1744959683170,0.01182033,84600.0,84597.0,0.44638675]
[1744959683377,0.01182033,84600.0,84597.0,0.35182075]
[1744959684135,0.01182033,84600.0,84596.0,0.01182088]
[1744959684341,0.01182047,84599.0,84596.0,0.35182088]
[1744959684745,0.2364122,84598.0,84596.0,0.34]
[1744959685194,0.0498,84597.0,84596.0,0.34]
[1744959685395,0.24823867,84596.0,84590.0,0.14306172]
[1744959685602,0.24823867,84596.0,84591.0,0.34]
[1744959685809,0.01182102,84595.0,84591.0,0.35182158]
[1744959686010,0.01182088,84596.0,84591.0,0.35182158]
[1744959687264,0.01182088,84596.0,84592.0,0.09457159]
[1744959687457,0.01182088,84596.0,84591.0,0.35182158]
[1744959687458,0.01182088,84596.0,84591.0,0.17775564]
[1744959687593,0.01182088,84596.0,84592.0,0.01182144]
[1744959688275,0.24823898,84596.0,84592.0,0.01182144]
[1744959689169,0.01182102,84595.0,84591.0,0.01182158]
[1744959689559,0.0118213,84593.0,84590.0,0.13124]
[1744959690317,0.23643177,84591.0,84590.0,0.13124]
[1744959691160,0.23643177,84591.0,84590.0,0.34]
[1744959691355,0.28413177,84591.0,84590.0,0.34]
[1744959699861,0.28413177,84591.0,84590.0,0.36]
[1744959702874,0.28413177,84591.0,84590.0,0.02]
[1744959707773,0.24825019,84593.0,84590.0,0.02]
[1744959708282,0.01182102,84595.0,84590.0,0.12639455]
[1744959708575,0.01182088,84596.0,84592.0,0.10639301]
[1744959708768,0.01182116,84594.0,84590.0,0.12639455]
[1744959711131,0.01182116,84594.0,84591.0,0.01182158]
[1744959721377,0.24824144,84596.0,84592.0,0.01182144]
[1744959721534,0.01182102,84595.0,84592.0,0.01182144]
[1744959723788,0.01182116,84594.0,84591.0,0.01182158]
[1744959729149,0.0118213,84593.0,84590.0,0.03182172]
[1744959729339,0.23643173,84592.0,84590.0,0.02]
[1744959729569,0.23643173,84592.0,84589.0,0.34]
[1744959729570,0.01182144,84592.0,84589.0,0.34]
[1744959730891,0.01182144,84592.0,84588.0,0.3702856]
[1744959731320,0.01182158,84591.0,84588.0,0.3702856]
[1744959731688,0.01182158,84591.0,84588.0,0.15806338]
[1744959732549,0.01182158,84591.0,84588.0,0.011822]
[1744959733550,0.01182158,84591.0,84588.0,0.031822]
[1744959735520,0.24825282,84592.0,84588.0,0.12639795]
[1744959735739,0.01182144,84592.0,84588.0,0.12639795]
[1744959736869,0.01182075,84597.0,84592.0,0.01182144]
[1744959737115,0.01182075,84597.0,84593.0,0.0118213]
[1744959737576,0.05792047,84599.0,84594.0,0.01182116]
[1744959737792,0.01182061,84598.0,84594.0,0.01182116]
[1744959738482,0.01182075,84597.0,84594.0,0.01182116]
[1744959740311,0.29431189,84606.0,84598.0,0.01182061]
[1744959740473,0.01182005,84602.0,84598.0,0.01182061]
[1744959740992,0.23639545,84604.0,84600.0,0.01182033]
[1744959741472,0.01182005,84602.0,84598.0,0.01182061]
[1744959743884,0.01266251,84603.0,84599.0,0.10638423]
[1744959744241,0.01182005,84602.0,84599.0,0.01182047]
[1744959746032,0.01266251,84603.0,84600.0,0.01182033]
[1744959746407,0.01182005,84602.0,84599.0,0.01182047]
[1744959746841,0.0008426,84603.0,84599.0,0.01182047]
[1744959747077,0.0008426,84603.0,84601.0,0.09456059]
[1744959748972,0.0008426,84603.0,84599.0,0.01282047]
[1744959749348,0.0008426,84603.0,84600.0,0.01182033]
[1744959749535,0.0008426,84603.0,84601.0,0.02]
[1744959749935,0.0008426,84603.0,84601.0,0.11456059]
[1744959751315,0.0008426,84603.0,84601.0,0.04]
[1744959752279,0.0008426,84603.0,84602.0,0.09456041]
[1744959753404,0.0008426,84603.0,84601.0,0.04]
[1744959754170,0.0008426,84603.0,84602.0,0.09456041]
[1744959757123,0.0008426,84603.0,84601.0,0.04]
[1744959757289,0.0008426,84603.0,84601.0,0.02]
[1744959758945,0.23724236,84603.0,84601.0,0.02]
[1744959762839,0.047,84602.0,84601.0,0.02]
[1744959772174,0.048,84602.0,84601.0,0.02]
[1744959778148,0.001,84602.0,84601.0,0.02]
[1744959781878,0.0008426,84603.0,84601.0,0.02]
[1744959782481,0.0008426,84603.0,84601.0,0.11456058]
[1744959789623,0.0008426,84603.0,84601.0,0.02]
[1744959793621,0.0008426,84603.0,84601.0,0.11456134]
[1744959794144,0.0008426,84603.0,84600.0,0.20834253]
[1744959795088,0.0008426,84603.0,84600.0,0.01182033]
[1744959802074,0.0008426,84603.0,84600.0,0.44638198]
[1744959803991,0.0008426,84603.0,84600.0,0.35182033]
[1744959804731,0.01266251,84603.0,84598.0,0.44638507]
[1744959804959,0.01266251,84603.0,84599.0,0.01182047]
[1744959807290,0.01182005,84602.0,84598.0,0.44638542]
[1744959807494,0.0465,84599.0,84598.0,0.34]
[1744959807668,0.05832047,84599.0,84594.0,0.43456828]
[1744959808210,0.05832047,84599.0,84595.0,0.01182102]
[1744959810285,0.05832047,84599.0,84596.0,0.44638799]
[1744959810479,0.05832047,84599.0,84596.0,0.35182088]
[1744959811566,0.0465,84599.0,84596.0,0.35182088]
[1744959813540,0.01182019,84601.0,84598.0,0.35182061]
[1744959816759,0.01182019,84601.0,84598.0,0.01182061]
[1744959819852,0.01182033,84600.0,84596.0,0.35182088]
[1744959820128,0.01182033,84600.0,84595.0,0.10638817]
[1744959820509,0.01182061,84598.0,84594.0,0.01182116]
[1744959820676,0.01182061,84598.0,84595.0,0.01182102]
[1744959820884,0.01182033,84600.0,84597.0,0.01182075]
[1744959822464,0.23641773,84597.0,84593.0,0.0118213]
[1744959822638,0.01182075,84597.0,84594.0,0.01182116]
[1744959822841,0.01182047,84599.0,84595.0,0.01182102]
[1744959823045,0.01182061,84598.0,84595.0,0.01182102]
[1744959823849,0.01182061,84598.0,84594.0,0.01182116]
[1744959824462,0.01182088,84596.0,84594.0,0.34]
[1744959824688,0.01182075,84597.0,84594.0,0.35182116]
[1744959825409,0.01182047,84599.0,84596.0,0.34]
[1744959826509,0.01182047,84599.0,84596.0,0.35182088]
[1744959836891,0.24823222,84599.0,84596.0,0.34]
[1744959837047,0.01182075,84597.0,84594.0,0.35182116]
[1744959837243,0.24823222,84599.0,84595.0,0.08274699]
[1744959842775,0.24823222,84599.0,84596.0,0.01182088]
[1744959843998,0.01182047,84599.0,84596.0,0.01182088]
[1744959844525,0.01182033,84600.0,84597.0,0.01182075]
[1744959846108,0.24822374,84602.0,84597.0,0.01182075]
[1744959846353,0.01182019,84601.0,84597.0,0.01182075]
[1744959846559,0.01182005,84602.0,84599.0,0.01182047]
[1744959851105,0.01182019,84601.0,84598.0,0.01182061]
[1744959851706,0.0008426,84603.0,84602.0,0.0709203]
[1744959851912,0.0008426,84603.0,84600.0,0.08274175]
[1744959852110,0.0008426,84603.0,84602.0,0.0709203]
[1744959852334,0.0008426,84603.0,84600.0,0.08274175]
[1744959854800,0.0008426,84603.0,84598.0,0.34]
[1744959854801,0.01182005,84602.0,84598.0,0.34]
[1744959855014,0.29772401,84601.0,84598.0,0.34]
[1744959856189,0.06132019,84601.0,84597.0,0.01182075]
[1744959856391,0.01182033,84600.0,84596.0,0.35182088]
[1744959856594,0.06132019,84601.0,84597.0,0.08274525]
[1744959857234,0.06132019,84601.0,84598.0,0.01182061]
[1744959857578,0.06132019,84601.0,84597.0,0.01182075]
[1744959857774,0.06132019,84601.0,84597.0,0.08274518]
[1744959861493,0.0008426,84603.0,84601.0,0.07092112]
[1744959861641,0.0008426,84603.0,84600.0,0.07092198]
[1744959861846,0.0008426,84603.0,84600.0,0.08274231]
[1744959862339,0.0008426,84603.0,84602.0,0.0709203]
[1744959862561,0.0008426,84603.0,84600.0,0.08274231]
[1744959866142,0.0008426,84603.0,84602.0,0.0709203]
[1744959866344,0.0008426,84603.0,84600.0,0.08274231]
[1744959869889,0.0008426,84603.0,84600.0,0.01182033]
[1744959870010,0.01182019,84601.0,84598.0,0.35182061]
[1744959871275,0.01182005,84602.0,84599.0,0.01182047]
[1744959873762,0.0008426,84603.0,84600.0,0.01182033]
[1744959878429,0.0008426,84603.0,84598.0,0.35182061]
[1744959879128,0.0008426,84603.0,84599.0,0.07092242]
[1744959879357,0.0008426,84603.0,84600.0,0.08274151]
[1744959885923,0.0008426,84603.0,84600.0,0.42274151]
[1744959889774,0.0008426,84603.0,84600.0,0.08274151]
[1744959891088,0.0008426,84603.0,84601.0,0.0709205]
[1744959892630,0.0008426,84603.0,84597.0,0.01182075]
[1744959895327,0.0008426,84603.0,84599.0,0.01182047]
[1744959899051,0.01266251,84603.0,84599.0,0.08274262]
[1744959899173,0.01182005,84602.0,84598.0,0.42274427]
[1744959899847,0.01266251,84603.0,84598.0,0.42274427]
[1744959900250,0.01266251,84603.0,84599.0,0.0827426]
[1744959901863,0.0008426,84603.0,84599.0,0.0827426]
[1744959902072,0.01266251,84603.0,84599.0,0.07092213]
[1744959902508,0.0008426,84603.0,84601.0,0.07092039]
[1744959902711,0.0008426,84603.0,84600.0,0.35182033]
[1744959903614,0.0008426,84603.0,84600.0,0.01182033]
[1744959903815,0.01266251,84603.0,84599.0,0.0827426]
[1744959908531,0.0008426,84603.0,84599.0,0.0827426]
[1744959908733,0.0008426,84603.0,84600.0,0.01182033]
[1744959909936,0.0008426,84603.0,84601.0,0.07092042]
[1744959910797,0.0008426,84603.0,84600.0,0.08274159]
[1744959914316,0.01182005,84602.0,84598.0,0.01182061]
[1744959915019,0.01182019,84601.0,84597.0,0.35182075]
[1744959915445,0.0451,84595.0,84594.0,0.34]
[1744959917062,0.0451,84595.0,84593.0,0.07092778]
[1744959918388,0.0451,84595.0,84592.0,0.01182144]
[1744959918588,0.0451,84595.0,84594.0,0.07092701]
[1744959920837,0.0451,84595.0,84590.0,0.42275138]
[1744959923550,0.0451,84595.0,84592.0,0.01182144]
[1744959923935,0.0451,84595.0,84593.0,0.07092706]
[1744959924992,0.0451,84595.0,84593.0,0.41092706]
[1744959925137,0.0451,84595.0,84592.0,0.08275008]
[1744959926009,0.0451,84595.0,84593.0,0.07092706]
[1744959926418,0.0451,84595.0,84592.0,0.08275008]
[1744959926800,0.0451,84595.0,84593.0,0.07092706]
[1744959928880,0.0451,84595.0,84591.0,0.25257893]
[1744959929048,0.0451,84595.0,84590.0,0.42275138]
[1744959929246,0.0451,84595.0,84592.0,0.08275008]
[1744959930380,0.0451,84595.0,84593.0,0.07092705]
[1744959930621,0.0451,84595.0,84592.0,0.08275008]
[1744959931587,0.00863054,84594.0,84592.0,0.08275008]
[1744959933138,0.00863054,84594.0,84592.0,0.01182144]
[1744959936007,0.0204517,84594.0,84590.0,0.01182172]
[1744959936772,0.00863054,84594.0,84591.0,0.01182158]
[1744959938999,0.00863054,84594.0,84592.0,0.07092869]
[1744959939698,0.00863054,84594.0,84591.0,0.01182158]
[1744959939900,0.00863054,84594.0,84591.0,0.42275029]
[1744959941294,0.00863054,84594.0,84591.0,0.35182158]
[1744959941651,0.0204517,84594.0,84591.0,0.35182158]
[1744959945732,0.0118213,84593.0,84589.0,0.01182186]
[1744959946067,0.01942311,84593.0,84589.0,0.01182186]
[1744959948014,0.01182158,84591.0,84588.0,0.34]
[1744959948446,0.00759414,84590.0,84588.0,0.34]
[1744959950888,0.0118213,84593.0,84589.0,0.01182186]
[1744959951071,0.01182144,84592.0,84589.0,0.01182186]
[1744959951266,0.01182158,84591.0,84588.0,0.34]
[1744959951470,0.01182158,84591.0,84588.0,0.351822]
[1744959951773,0.01182144,84592.0,84589.0,0.01182186]
[1744959952428,0.0118213,84593.0,84589.0,0.01182186]
[1744959953049,0.0118213,84593.0,84588.0,0.011822]
[1744959953259,0.0118213,84593.0,84588.0,0.08275334]
[1744959953411,0.0075965,84592.0,84589.0,0.01182186]
[1744959961582,0.0075965,84592.0,84591.0,0.07092953]
[1744959962000,0.24822371,84602.0,84598.0,0.01182061]
[1744959962363,0.01943969,84601.0,84598.0,0.01182061]
[1744959964449,0.01943969,84601.0,84595.0,0.07092537]
[1744959965526,0.01943969,84601.0,84598.0,0.01182061]
[1744959966830,0.01182019,84601.0,84598.0,0.01182061]
[1744959968453,0.01182061,84598.0,84594.0,0.01182116]
[1744959968863,0.00761979,84597.0,84594.0,0.01182116]
[1744959969591,0.01182088,84596.0,84592.0,0.34]
[1744959969796,0.01182088,84596.0,84592.0,0.35182144]
[1744959970014,0.00761468,84595.0,84592.0,0.35182144]
[1744959970763,0.00761468,84595.0,84593.0,0.07092785]
[1744959971249,0.01182075,84597.0,84594.0,0.01182116]
[1744959975143,0.01182075,84597.0,84590.0,0.01182172]
[1744959975144,0.01182116,84594.0,84590.0,0.01182172]
[1744959975968,0.01182116,84594.0,84590.0,0.08275209]
[1744959977115,0.01182144,84592.0,84588.0,0.34]
[1744959977408,0.23643736,84589.0,84587.0,0.1308]
[1744959977585,0.23644574,84586.0,84584.0,0.00868967]
[1744959977791,0.23644574,84586.0,84585.0,0.75245089]